Workbook

Sheet Contribución Solidaria (hidden)
A1: Matriz para el Cálculo Mensual de la deducción de ley denominada Contribución Solidaria
A3: Monto Bruto de Asignación Mensual | F3: 3059204.56
A5: Contribución Solidaria
A7: Datos de Ley para Contribución Solidaria.
A8: Cant. De Salarios | C8: 6
A9: Aplica CS | C9: SI
A10: Monto Salario + bajo | C10: 433800
A11: Monto Tope | C11: =+C10*C8 -> 2602800
A12: Monto Tasable | C12: =+IF(OR(F3<C11,C9="no"),"N/A",F3-C11) -> 456404.56
A13: % Contribución Aplicada | C13: =IF(C12="N/A",0,SUM(F15:F19)/F3) -> 0.05221670956
A14: Rangos | B14: 0.25 | C14: Limite Inf. | D14: Limite Sup. | E14: Exceso | F14: Aporte
A15: Estrato A | B15: 0.35 | C15: =+C11 -> 2602800 | D15: =+C15*(1+$B$14) -> 3253500 | E15: =IF($C$12="N/A","",IF(AND($F$3>C15,$F$3<D15),($F$3-C15),IF(AND($F$3>C15,$F$3>D15),D15-C15,0))) -> 456404.56 | F15: =IF($C$12="N/A","",E15*B15) -> 159741.596
A16: Estrato B | B16: 0.4 | C16: =+D15 -> 3253500 | D16: =+C16*(1+$B$14) -> 4066875 | E16: =IF($C$12="N/A","",IF(AND($F$3>C16,$F$3<D16),($F$3-C16),IF(AND($F$3>C16,$F$3>D16),D16-C16,0))) -> 0 | F16: =IF($C$12="N/A","",E16*B16) -> 0
A17: Estrato C | B17: 0.45 | C17: =+D16 -> 4066875 | D17: =+C17*(1+$B$14) -> 5083593.75 | E17: =IF($C$12="N/A","",IF(AND($F$3>C17,$F$3<D17),($F$3-C17),IF(AND($F$3>C17,$F$3>D17),D17-C17,0))) -> 0 | F17: =IF($C$12="N/A","",E17*B17) -> 0
A18: Estrato D | B18: 0.5 | C18: =+D17 -> 5083593.75 | D18: =+C18*(1+$B$14) -> 6354492.188 | E18: =IF($C$12="N/A","",IF(AND($F$3>C18,$F$3<D18),($F$3-C18),IF(AND($F$3>C18,$F$3>D18),D18-C18,0))) -> 0 | F18: =IF($C$12="N/A","",E18*B18) -> 0
A19: Estrato E | B19: 0.55 | C19: =+D18 -> 6354492.188 | D19: 15000000 | E19: =IF($C$12="N/A","",IF(AND($F$3>C19,$F$3<D19),($F$3-C19),IF(AND($F$3>C19,$F$3>D19),D19-C19,0))) -> 0 | F19: =IF($C$12="N/A","",E19*B19) -> 0
E20: =SUM(E15:E19) -> 456404.56 | F20: =SUM(F15:F19) -> 159741.596
A21: Contribución Máxima | C21: 0.55 | F21: =IF(C9="si",IF((SUM(F15:F19,F33:F38)/F3)>C21,F3*(C21-E32),SUM(F15:F19)),0) -> -844431.2476
A23: Impuesto sobre la Renta
A24: Monto Tasable | B24: =+F3-C25 -> 2219204.56
A25: Rango 1 | B25: 0.1 | C25: 840000 | D25: 1233000 | E25: =IF($B$24="N/A","",IF(AND($F$3>C25,$F$3<D25),($F$3-C25),IF(AND($F$3>C25,$F$3>D25),D25-C25,0))) -> 393000 | F25: =IF($C$12="N/A","",E25*B25) -> 39300
A26: Rango 2 | B26: 0.15 | C26: =+D25 -> 1233000 | D26: 2163000 | E26: =IF($B$24="N/A","",IF(AND($F$3>C26,$F$3<D26),($F$3-C26),IF(AND($F$3>C26,$F$3>D26),D26-C26,0))) -> 930000 | F26: =IF($C$12="N/A","",E26*B26) -> 139500
A27: Rango 3 | B27: 0.2 | C27: =+D26 -> 2163000 | D27: 4325000 | E27: =IF($B$24="N/A","",IF(AND($F$3>C27,$F$3<D27),($F$3-C27),IF(AND($F$3>C27,$F$3>D27),D27-C27,0))) -> 896204.56 | F27: =IF($C$12="N/A","",E27*B27) -> 179240.912
A28: Rango 4 | B28: 0.25 | C28: =+D27 -> 4325000 | D28: 15000000 | E28: =IF($B$24="N/A","",IF(AND($F$3>C28,$F$3<D28),($F$3-C28),IF(AND($F$3>C28,$F$3>D28),D28-C28,0))) -> 0 | F28: =IF($C$12="N/A","",E28*B28) -> 0
E29: =SUM(E24:E28) -> 2219204.56 | F29: =SUM(F24:F28) -> 358040.912
A31: Total deducciones de Ley
A32: Deducciones de Ley sin contribución: | E32: =+SUM(F33:F38)/F3 -> 0.8260296773
A33: Aporte al Fondo de Jubilaciones y Pensiones PJ (FJPPJ) | E33: 0.13 | F33: =+F3*E33 -> 397696.5928
A34: Seguro de Enfermedad y Maternidad (C.C.S.S.) | E34: 0.05 | F34: =F3*E34 -> 152960.228
A35: Fondo de Socorro Mutuo | E35: 500 | F35: 3000
A36: Pensión Alimentaria (en caso que aplique) | F36: 1600000
A37: Costo de Administración Junta Administradora FJPPJ | E37: 0.005 | F37: =+E37*F3 -> 15296.0228
A38: Impto. sobre la renta | F38: =+F29 -> 358040.912
A40: Contribución Solidaria | F40: =IF(F21<0,0,F21) -> 0
A41: Total deducciones de Ley con contribución | E41: =+F41/F3 -> 0.8260296773 | F41: =SUM(F33:F40) -> 2526993.756
A42: Monto Neto beneficio | F42: =+F3-F41 -> 532210.8044

Sheet Contribución Solidaria
A1: Matriz para el Cálculo Mensual de la deducción de ley denominada Contribución Solidaria | H1: Notas Aclaratorias
A3: Favor completar los campos marcados en color verde
A5: Monto Bruto de Asignación Mensual | F5: 0
A7: Cálculo Contribución Solidaria
A9: Datos de Ley para Contribución Solidaria.
A10: Cant. De Salarios | C10: 6
A11: Aplica CS | C11: SI
A12: Monto Salario + bajo | C12: 433800
A13: Monto Tope | C13: =+C12*C10 -> 2602800
A14: Monto Tasable | C14: =+IF(OR(F5<C13,C11="no"),"N/A",F5-C13) -> N/A
A15: % Contribución Aplicada | C15: =IF(C14="N/A",0,SUM(F17:F21)/F5) -> 0
A16: Rangos | B16: 0.25 | C16: Limite Inf. | D16: Limite Sup. | E16: Exceso | F16: Aporte
A17: Estrato A | B17: 0.35 | C17: =+C13 -> 2602800 | D17: =+C17*(1+$B$16) -> 3253500 | E17: =IF($C$14="N/A","",IF(AND($F$5>C17,$F$5<D17),($F$5-C17),IF(AND($F$5>C17,$F$5>D17),D17-C17,0))) ->  | F17: =IF($C$14="N/A","",E17*B17) -> 
A18: Estrato B | B18: 0.4 | C18: =+D17 -> 3253500 | D18: =+C18*(1+$B$16) -> 4066875 | E18: =IF($C$14="N/A","",IF(AND($F$5>C18,$F$5<D18),($F$5-C18),IF(AND($F$5>C18,$F$5>D18),D18-C18,0))) ->  | F18: =IF($C$14="N/A","",E18*B18) -> 
A19: Estrato C | B19: 0.45 | C19: =+D18 -> 4066875 | D19: =+C19*(1+$B$16) -> 5083593.75 | E19: =IF($C$14="N/A","",IF(AND($F$5>C19,$F$5<D19),($F$5-C19),IF(AND($F$5>C19,$F$5>D19),D19-C19,0))) ->  | F19: =IF($C$14="N/A","",E19*B19) -> 
A20: Estrato D | B20: 0.5 | C20: =+D19 -> 5083593.75 | D20: =+C20*(1+$B$16) -> 6354492.188 | E20: =IF($C$14="N/A","",IF(AND($F$5>C20,$F$5<D20),($F$5-C20),IF(AND($F$5>C20,$F$5>D20),D20-C20,0))) ->  | F20: =IF($C$14="N/A","",E20*B20) -> 
A21: Estrato E | B21: 0.55 | C21: =+D20 -> 6354492.188 | D21: 15000000 | E21: =IF($C$14="N/A","",IF(AND($F$5>C21,$F$5<D21),($F$5-C21),IF(AND($F$5>C21,$F$5>D21),D21-C21,0))) ->  | F21: =IF($C$14="N/A","",E21*B21) -> 
E22: =SUM(E17:E21) -> 0 | F22: =SUM(F17:F21) -> 0
A23: Contribución Máxima | C23: 0.55 | F23: =_xlfn.IFS(F5*(C23-E34)<0,0,(SUM(F17:F21,F35:F40)/F5)>C23,F5*(C23-E34),(SUM(F17:F21,F35:F40)/F5)<C23,SUM(F17:F21)) -> 
A25: Cálculo Impuesto sobre la Renta
A26: Monto a aplicar renta | C26: =+F5-C27 -> -840000
A27: Tope 1 | B27: 0.1 | C27: 840000 | D27: 1233000 | E27: =IF($C$26="N/A","",IF(AND($F$5>C27,$F$5<D27),($F$5-C27),IF(AND($F$5>C27,$F$5>D27),D27-C27,0))) -> 0 | F27: =IF($C$14="N/A","",E27*B27) -> 
A28: Tope 2 | B28: 0.15 | C28: =+D27 -> 1233000 | D28: 2163000 | E28: =IF($C$26="N/A","",IF(AND($F$5>C28,$F$5<D28),($F$5-C28),IF(AND($F$5>C28,$F$5>D28),D28-C28,0))) -> 0 | F28: =IF($C$14="N/A","",E28*B28) -> 
A29: Tope 3 | B29: 0.2 | C29: =+D28 -> 2163000 | D29: 4325000 | E29: =IF($C$26="N/A","",IF(AND($F$5>C29,$F$5<D29),($F$5-C29),IF(AND($F$5>C29,$F$5>D29),D29-C29,0))) -> 0 | F29: =IF($C$14="N/A","",E29*B29) -> 
A30: Tope 4 | B30: 0.25 | C30: =+D29 -> 4325000 | D30: 15000000 | E30: =IF($C$26="N/A","",IF(AND($F$5>C30,$F$5<D30),($F$5-C30),IF(AND($F$5>C30,$F$5>D30),D30-C30,0))) -> 0 | F30: =IF($C$14="N/A","",E30*B30) -> 
A31: Totales | E31: =SUM(E26:E30) -> 0 | F31: =SUM(F26:F30) -> 0
A33: Total deducciones de Ley
A34: Deducciones de Ley sin contribución: | E34: =+SUM(F35:F40)/F5 -> 
A35: Aporte al Fondo de Jubilaciones y Pensiones PJ (FJPPJ) | E35: 0.13 | F35: =+F5*E35 -> 0
A36: Seguro de Enfermedad y Maternidad (C.C.S.S.) | E36: 0.05 | F36: =F5*E36 -> 0
A37: Fondo de Socorro Mutuo | E37: 500 | F37: 3000
A38: Pensión Alimentaria (en caso que aplique)
A39: Costo de Administración Junta Administradora FJPPJ | E39: 0.005 | F39: =+E39*F5 -> 0
A40: Impto. sobre la renta | F40: =+F31 -> 0
A42: Contribución Solidaria | F42: =+F23 -> 
A43: Total deducciones de Ley con Contribución Solidaria | E43: =+F43/F5 ->  | F43: =SUM(F35:F42) -> 
A45: Monto Neto beneficio | F45: =+F5-F43 -> 

Sheet Zarela (hidden)
A1: Matriz para el Cálculo Mensual de la deducción de ley denominada Contribución Solidaria
A3: Monto Bruto de Asignación Mensual | F3: 10284977.64
A5: Contribución Solidaria
A7: Datos de Ley para Contribución Solidaria.
A8: Cant. De Salarios | C8: 6
A9: Aplica CS | C9: SI
A10: Monto Salario + bajo | C10: 433800
A11: Monto Tope | C11: =+C10*C8 -> 2602800
A12: Monto Tasable | C12: =+IF(OR(F3<C11,C9="no"),"N/A",F3-C11) -> 7682177.64
A13: % Contribución Aplicada | C13: =IF(C12="N/A",0,SUM(F15:F19)/F3) -> 0.3702326625
A14: Rangos | B14: 0.25 | C14: Limite Inf. | D14: Limite Sup. | E14: Exceso | F14: Aporte
A15: Estrato A | B15: 0.35 | C15: =+C11 -> 2602800 | D15: =+C15*(1+$B$14) -> 3253500 | E15: =IF($C$12="N/A","",IF(AND($F$3>C15,$F$3<D15),($F$3-C15),IF(AND($F$3>C15,$F$3>D15),D15-C15,0))) -> 650700 | F15: =IF($C$12="N/A","",E15*B15) -> 227745
A16: Estrato B | B16: 0.4 | C16: =+D15 -> 3253500 | D16: =+C16*(1+$B$14) -> 4066875 | E16: =IF($C$12="N/A","",IF(AND($F$3>C16,$F$3<D16),($F$3-C16),IF(AND($F$3>C16,$F$3>D16),D16-C16,0))) -> 813375 | F16: =IF($C$12="N/A","",E16*B16) -> 325350
A17: Estrato C | B17: 0.45 | C17: =+D16 -> 4066875 | D17: =+C17*(1+$B$14) -> 5083593.75 | E17: =IF($C$12="N/A","",IF(AND($F$3>C17,$F$3<D17),($F$3-C17),IF(AND($F$3>C17,$F$3>D17),D17-C17,0))) -> 1016718.75 | F17: =IF($C$12="N/A","",E17*B17) -> 457523.4375
A18: Estrato D | B18: 0.5 | C18: =+D17 -> 5083593.75 | D18: =+C18*(1+$B$14) -> 6354492.188 | E18: =IF($C$12="N/A","",IF(AND($F$3>C18,$F$3<D18),($F$3-C18),IF(AND($F$3>C18,$F$3>D18),D18-C18,0))) -> 1270898.438 | F18: =IF($C$12="N/A","",E18*B18) -> 635449.2188
A19: Estrato E | B19: 0.55 | C19: =+D18 -> 6354492.188 | D19: 15000000 | E19: =IF($C$12="N/A","",IF(AND($F$3>C19,$F$3<D19),($F$3-C19),IF(AND($F$3>C19,$F$3>D19),D19-C19,0))) -> 3930485.453 | F19: =IF($C$12="N/A","",E19*B19) -> 2161766.999
E20: =SUM(E15:E19) -> 7682177.64 | F20: =SUM(F15:F19) -> 3807834.655
A21: Contribución Máxima | C21: 0.55 | F21: =_xlfn.IFS(F3*(C21-E32)<0,0,(SUM(F15:F19,F33:F38)/F3)>C21,F3*(C21-E32),(SUM(F15:F19,F33:F38)/F3)<C21,SUM(F15:F19)) -> 1649822.429
A23: Impuesto sobre la Renta
A24: Monto Tasable | B24: =+F3-C25 -> 9444977.64
A25: Rango 1 | B25: 0.1 | C25: 840000 | D25: 1233000 | E25: =IF($B$24="N/A","",IF(AND($F$3>C25,$F$3<D25),($F$3-C25),IF(AND($F$3>C25,$F$3>D25),D25-C25,0))) -> 393000 | F25: =IF($C$12="N/A","",E25*B25) -> 39300
A26: Rango 2 | B26: 0.15 | C26: =+D25 -> 1233000 | D26: 2163000 | E26: =IF($B$24="N/A","",IF(AND($F$3>C26,$F$3<D26),($F$3-C26),IF(AND($F$3>C26,$F$3>D26),D26-C26,0))) -> 930000 | F26: =IF($C$12="N/A","",E26*B26) -> 139500
A27: Rango 3 | B27: 0.2 | C27: =+D26 -> 2163000 | D27: 4325000 | E27: =IF($B$24="N/A","",IF(AND($F$3>C27,$F$3<D27),($F$3-C27),IF(AND($F$3>C27,$F$3>D27),D27-C27,0))) -> 2162000 | F27: =IF($C$12="N/A","",E27*B27) -> 432400
A28: Rango 4 | B28: 0.25 | C28: =+D27 -> 4325000 | D28: 15000000 | E28: =IF($B$24="N/A","",IF(AND($F$3>C28,$F$3<D28),($F$3-C28),IF(AND($F$3>C28,$F$3>D28),D28-C28,0))) -> 5959977.64 | F28: =IF($C$12="N/A","",E28*B28) -> 1489994.41
E29: =SUM(E24:E28) -> 9444977.64 | F29: =SUM(F24:F28) -> 2101194.41
A31: Total deducciones de Ley
A32: Deducciones de Ley sin contribución: | E32: =+SUM(F33:F38)/F3 -> 0.3895891089
A33: Aporte al Fondo de Jubilaciones y Pensiones PJ (FJPPJ) | E33: 0.13 | F33: =+F3*E33 -> 1337047.093
A34: Seguro de Enfermedad y Maternidad (C.C.S.S.) | E34: 0.05 | F34: =F3*E34 -> 514248.882
A35: Fondo de Socorro Mutuo | E35: 500 | F35: 3000
A36: Pensión Alimentaria (en caso que aplique) | F36: 0
A37: Costo de Administración Junta Administradora FJPPJ | E37: 0.005 | F37: =+E37*F3 -> 51424.8882
A38: Impto. sobre la renta | F38: =+F29 -> 2101194.41
A40: Contribución Solidaria | F40: =IF(F21<0,0,F21) -> 1649822.429
A41: Total deducciones de Ley con contribución | E41: =+F41/F3 -> 0.55 | F41: =SUM(F33:F40) -> 5656737.702
A42: Monto Neto beneficio | F42: =+F3-F41 -> 4628239.938

Sheet Alfredo (hidden)
A1: Matriz para el Cálculo Mensual de la deducción de ley denominada Contribución Solidaria
A3: Monto Bruto de Asignación Mensual | F3: 5263371.5
A5: Contribución Solidaria
A7: Datos de Ley para Contribución Solidaria.
A8: Cant. De Salarios | C8: 6
A9: Aplica CS | C9: SI
A10: Monto Salario + bajo | C10: 433800
A11: Monto Tope | C11: =+C10*C8 -> 2602800
A12: Monto Tasable | C12: =+IF(OR(F3<C11,C9="no"),"N/A",F3-C11) -> 2660571.5
A13: % Contribución Aplicada | C13: =IF(C12="N/A",0,SUM(F15:F19)/F3) -> 0.2090879035
A14: Rangos | B14: 0.25 | C14: Limite Inf. | D14: Limite Sup. | E14: Exceso | F14: Aporte
A15: Estrato A | B15: 0.35 | C15: =+C11 -> 2602800 | D15: =+C15*(1+$B$14) -> 3253500 | E15: =IF($C$12="N/A","",IF(AND($F$3>C15,$F$3<D15),($F$3-C15),IF(AND($F$3>C15,$F$3>D15),D15-C15,0))) -> 650700 | F15: =IF($C$12="N/A","",E15*B15) -> 227745
A16: Estrato B | B16: 0.4 | C16: =+D15 -> 3253500 | D16: =+C16*(1+$B$14) -> 4066875 | E16: =IF($C$12="N/A","",IF(AND($F$3>C16,$F$3<D16),($F$3-C16),IF(AND($F$3>C16,$F$3>D16),D16-C16,0))) -> 813375 | F16: =IF($C$12="N/A","",E16*B16) -> 325350
A17: Estrato C | B17: 0.45 | C17: =+D16 -> 4066875 | D17: =+C17*(1+$B$14) -> 5083593.75 | E17: =IF($C$12="N/A","",IF(AND($F$3>C17,$F$3<D17),($F$3-C17),IF(AND($F$3>C17,$F$3>D17),D17-C17,0))) -> 1016718.75 | F17: =IF($C$12="N/A","",E17*B17) -> 457523.4375
A18: Estrato D | B18: 0.5 | C18: =+D17 -> 5083593.75 | D18: =+C18*(1+$B$14) -> 6354492.188 | E18: =IF($C$12="N/A","",IF(AND($F$3>C18,$F$3<D18),($F$3-C18),IF(AND($F$3>C18,$F$3>D18),D18-C18,0))) -> 179777.75 | F18: =IF($C$12="N/A","",E18*B18) -> 89888.875
A19: Estrato E | B19: 0.55 | C19: =+D18 -> 6354492.188 | D19: 15000000 | E19: =IF($C$12="N/A","",IF(AND($F$3>C19,$F$3<D19),($F$3-C19),IF(AND($F$3>C19,$F$3>D19),D19-C19,0))) -> 0 | F19: =IF($C$12="N/A","",E19*B19) -> 0
E20: =SUM(E15:E19) -> 2660571.5 | F20: =SUM(F15:F19) -> 1100507.312
A21: Contribución Máxima | C21: 0.55 | F21: =_xlfn.IFS(F3*(C21-E32)<0,0,(SUM(F15:F19,F33:F38)/F3)>C21,F3*(C21-E32),(SUM(F15:F19,F33:F38)/F3)<C21,SUM(F15:F19)) -> 1072337.723
A23: Impuesto sobre la Renta
A24: Monto Tasable | B24: =+F3-C25 -> 4423371.5
A25: Rango 1 | B25: 0.1 | C25: 840000 | D25: 1233000 | E25: =IF($B$24="N/A","",IF(AND($F$3>C25,$F$3<D25),($F$3-C25),IF(AND($F$3>C25,$F$3>D25),D25-C25,0))) -> 393000 | F25: =IF($C$12="N/A","",E25*B25) -> 39300
A26: Rango 2 | B26: 0.15 | C26: =+D25 -> 1233000 | D26: 2163000 | E26: =IF($B$24="N/A","",IF(AND($F$3>C26,$F$3<D26),($F$3-C26),IF(AND($F$3>C26,$F$3>D26),D26-C26,0))) -> 930000 | F26: =IF($C$12="N/A","",E26*B26) -> 139500
A27: Rango 3 | B27: 0.2 | C27: =+D26 -> 2163000 | D27: 4325000 | E27: =IF($B$24="N/A","",IF(AND($F$3>C27,$F$3<D27),($F$3-C27),IF(AND($F$3>C27,$F$3>D27),D27-C27,0))) -> 2162000 | F27: =IF($C$12="N/A","",E27*B27) -> 432400
A28: Rango 4 | B28: 0.25 | C28: =+D27 -> 4325000 | D28: 15000000 | E28: =IF($B$24="N/A","",IF(AND($F$3>C28,$F$3<D28),($F$3-C28),IF(AND($F$3>C28,$F$3>D28),D28-C28,0))) -> 938371.5 | F28: =IF($C$12="N/A","",E28*B28) -> 234592.875
E29: =SUM(E24:E28) -> 4423371.5 | F29: =SUM(F24:F28) -> 845792.875
A31: Total deducciones de Ley
A32: Deducciones de Ley sin contribución: | E32: =+SUM(F33:F38)/F3 -> 0.3462641013
A33: Aporte al Fondo de Jubilaciones y Pensiones PJ (FJPPJ) | E33: 0.13 | F33: =+F3*E33 -> 684238.295
A34: Seguro de Enfermedad y Maternidad (C.C.S.S.) | E34: 0.05 | F34: =F3*E34 -> 263168.575
A35: Fondo de Socorro Mutuo | E35: 500 | F35: 3000
A36: Pensión Alimentaria (en caso que aplique) | F36: 0
A37: Costo de Administración Junta Administradora FJPPJ | E37: 0.005 | F37: =+E37*F3 -> 26316.8575
A38: Impto. sobre la renta | F38: =+F29 -> 845792.875
A40: Contribución Solidaria | F40: =IF(F21<0,0,F21) -> 1072337.723
A41: Total deducciones de Ley con contribución | E41: =+F41/F3 -> 0.55 | F41: =SUM(F33:F40) -> 2894854.325
A42: Monto Neto beneficio | F42: =+F3-F41 -> 2368517.175

Sheet Oscar (hidden)
A1: Matriz para el Cálculo Mensual de la deducción de ley denominada Contribución Solidaria
A3: Monto Bruto de Asignación Mensual | F3: 3048795.8
A5: Contribución Solidaria
A7: Datos de Ley para Contribución Solidaria.
A8: Cant. De Salarios | C8: 6
A9: Aplica CS | C9: SI
A10: Monto Salario + bajo | C10: 433800
A11: Monto Tope | C11: =+C10*C8 -> 2602800
A12: Monto Tasable | C12: =+IF(OR(F3<C11,C9="no"),"N/A",F3-C11) -> 445995.8
A13: % Contribución Aplicada | C13: =IF(C12="N/A",0,SUM(F15:F19)/F3) -> 0.05120006069
A14: Rangos | B14: 0.25 | C14: Limite Inf. | D14: Limite Sup. | E14: Exceso | F14: Aporte
A15: Estrato A | B15: 0.35 | C15: =+C11 -> 2602800 | D15: =+C15*(1+$B$14) -> 3253500 | E15: =IF($C$12="N/A","",IF(AND($F$3>C15,$F$3<D15),($F$3-C15),IF(AND($F$3>C15,$F$3>D15),D15-C15,0))) -> 445995.8 | F15: =IF($C$12="N/A","",E15*B15) -> 156098.53
A16: Estrato B | B16: 0.4 | C16: =+D15 -> 3253500 | D16: =+C16*(1+$B$14) -> 4066875 | E16: =IF($C$12="N/A","",IF(AND($F$3>C16,$F$3<D16),($F$3-C16),IF(AND($F$3>C16,$F$3>D16),D16-C16,0))) -> 0 | F16: =IF($C$12="N/A","",E16*B16) -> 0
A17: Estrato C | B17: 0.45 | C17: =+D16 -> 4066875 | D17: =+C17*(1+$B$14) -> 5083593.75 | E17: =IF($C$12="N/A","",IF(AND($F$3>C17,$F$3<D17),($F$3-C17),IF(AND($F$3>C17,$F$3>D17),D17-C17,0))) -> 0 | F17: =IF($C$12="N/A","",E17*B17) -> 0
A18: Estrato D | B18: 0.5 | C18: =+D17 -> 5083593.75 | D18: =+C18*(1+$B$14) -> 6354492.188 | E18: =IF($C$12="N/A","",IF(AND($F$3>C18,$F$3<D18),($F$3-C18),IF(AND($F$3>C18,$F$3>D18),D18-C18,0))) -> 0 | F18: =IF($C$12="N/A","",E18*B18) -> 0
A19: Estrato E | B19: 0.55 | C19: =+D18 -> 6354492.188 | D19: 15000000 | E19: =IF($C$12="N/A","",IF(AND($F$3>C19,$F$3<D19),($F$3-C19),IF(AND($F$3>C19,$F$3>D19),D19-C19,0))) -> 0 | F19: =IF($C$12="N/A","",E19*B19) -> 0
E20: =SUM(E15:E19) -> 445995.8 | F20: =SUM(F15:F19) -> 156098.53
A21: Contribución Máxima | C21: 0.55 | F21: =_xlfn.IFS(F3*(C21-E32)<0,0,(SUM(F15:F19,F33:F38)/F3)>C21,F3*(C21-E32),(SUM(F15:F19,F33:F38)/F3)<C21,SUM(F15:F19)) -> 156098.53
A23: Impuesto sobre la Renta
A24: Monto Tasable | B24: =+F3-C25 -> 2208795.8
A25: Rango 1 | B25: 0.1 | C25: 840000 | D25: 1233000 | E25: =IF($B$24="N/A","",IF(AND($F$3>C25,$F$3<D25),($F$3-C25),IF(AND($F$3>C25,$F$3>D25),D25-C25,0))) -> 393000 | F25: =IF($C$12="N/A","",E25*B25) -> 39300
A26: Rango 2 | B26: 0.15 | C26: =+D25 -> 1233000 | D26: 2163000 | E26: =IF($B$24="N/A","",IF(AND($F$3>C26,$F$3<D26),($F$3-C26),IF(AND($F$3>C26,$F$3>D26),D26-C26,0))) -> 930000 | F26: =IF($C$12="N/A","",E26*B26) -> 139500
A27: Rango 3 | B27: 0.2 | C27: =+D26 -> 2163000 | D27: 4325000 | E27: =IF($B$24="N/A","",IF(AND($F$3>C27,$F$3<D27),($F$3-C27),IF(AND($F$3>C27,$F$3>D27),D27-C27,0))) -> 885795.8 | F27: =IF($C$12="N/A","",E27*B27) -> 177159.16
A28: Rango 4 | B28: 0.25 | C28: =+D27 -> 4325000 | D28: 15000000 | E28: =IF($B$24="N/A","",IF(AND($F$3>C28,$F$3<D28),($F$3-C28),IF(AND($F$3>C28,$F$3>D28),D28-C28,0))) -> 0 | F28: =IF($C$12="N/A","",E28*B28) -> 0
E29: =SUM(E24:E28) -> 2208795.8 | F29: =SUM(F24:F28) -> 355959.16
A31: Total deducciones de Ley
A32: Deducciones de Ley sin contribución: | E32: =+SUM(F33:F38)/F3 -> 0.3027380132
A33: Aporte al Fondo de Jubilaciones y Pensiones PJ (FJPPJ) | E33: 0.13 | F33: =+F3*E33 -> 396343.454
A34: Seguro de Enfermedad y Maternidad (C.C.S.S.) | E34: 0.05 | F34: =F3*E34 -> 152439.79
A35: Fondo de Socorro Mutuo | E35: 500 | F35: 3000
A36: Pensión Alimentaria (en caso que aplique) | F36: 0
A37: Costo de Administración Junta Administradora FJPPJ | E37: 0.005 | F37: =+E37*F3 -> 15243.979
A38: Impto. sobre la renta | F38: =+F29 -> 355959.16
A40: Contribución Solidaria | F40: =+F21 -> 156098.53
A41: Total deducciones de Ley con contribución | E41: =+F41/F3 -> 0.3539380738 | F41: =SUM(F33:F40) -> 1079084.913
A42: Monto Neto beneficio | F42: =+F3-F41 -> 1969710.887

Sheet Carlos (hidden)
A1: Matriz para el Cálculo Mensual de la deducción de ley denominada Contribución Solidaria
A3: Monto Bruto de Asignación Mensual | F3: 3179434.36
A5: Contribución Solidaria
A7: Datos de Ley para Contribución Solidaria.
A8: Cant. De Salarios | C8: 6
A9: Aplica CS | C9: SI
A10: Monto Salario + bajo | C10: 433800
A11: Monto Tope | C11: =+C10*C8 -> 2602800
A12: Monto Tasable | C12: =+IF(OR(F3<C11,C9="no"),"N/A",F3-C11) -> 576634.36
A13: % Contribución Aplicada | C13: =IF(C12="N/A",0,SUM(F15:F19)/F3) -> 0.06347733689
A14: Rangos | B14: 0.25 | C14: Limite Inf. | D14: Limite Sup. | E14: Exceso | F14: Aporte
A15: Estrato A | B15: 0.35 | C15: =+C11 -> 2602800 | D15: =+C15*(1+$B$14) -> 3253500 | E15: =IF($C$12="N/A","",IF(AND($F$3>C15,$F$3<D15),($F$3-C15),IF(AND($F$3>C15,$F$3>D15),D15-C15,0))) -> 576634.36 | F15: =IF($C$12="N/A","",E15*B15) -> 201822.026
A16: Estrato B | B16: 0.4 | C16: =+D15 -> 3253500 | D16: =+C16*(1+$B$14) -> 4066875 | E16: =IF($C$12="N/A","",IF(AND($F$3>C16,$F$3<D16),($F$3-C16),IF(AND($F$3>C16,$F$3>D16),D16-C16,0))) -> 0 | F16: =IF($C$12="N/A","",E16*B16) -> 0
A17: Estrato C | B17: 0.45 | C17: =+D16 -> 4066875 | D17: =+C17*(1+$B$14) -> 5083593.75 | E17: =IF($C$12="N/A","",IF(AND($F$3>C17,$F$3<D17),($F$3-C17),IF(AND($F$3>C17,$F$3>D17),D17-C17,0))) -> 0 | F17: =IF($C$12="N/A","",E17*B17) -> 0
A18: Estrato D | B18: 0.5 | C18: =+D17 -> 5083593.75 | D18: =+C18*(1+$B$14) -> 6354492.188 | E18: =IF($C$12="N/A","",IF(AND($F$3>C18,$F$3<D18),($F$3-C18),IF(AND($F$3>C18,$F$3>D18),D18-C18,0))) -> 0 | F18: =IF($C$12="N/A","",E18*B18) -> 0
A19: Estrato E | B19: 0.55 | C19: =+D18 -> 6354492.188 | D19: 15000000 | E19: =IF($C$12="N/A","",IF(AND($F$3>C19,$F$3<D19),($F$3-C19),IF(AND($F$3>C19,$F$3>D19),D19-C19,0))) -> 0 | F19: =IF($C$12="N/A","",E19*B19) -> 0
E20: =SUM(E15:E19) -> 576634.36 | F20: =SUM(F15:F19) -> 201822.026
A21: Contribución Máxima | C21: 0.55 | F21: =_xlfn.IFS(F3*(C21-E32)<0,0,(SUM(F15:F19,F33:F38)/F3)>C21,F3*(C21-E32),(SUM(F15:F19,F33:F38)/F3)<C21,SUM(F15:F19)) -> 201822.026
A23: Impuesto sobre la Renta
A24: Monto Tasable | B24: =+F3-C25 -> 2339434.36
A25: Rango 1 | B25: 0.1 | C25: 840000 | D25: 1233000 | E25: =IF($B$24="N/A","",IF(AND($F$3>C25,$F$3<D25),($F$3-C25),IF(AND($F$3>C25,$F$3>D25),D25-C25,0))) -> 393000 | F25: =IF($C$12="N/A","",E25*B25) -> 39300
A26: Rango 2 | B26: 0.15 | C26: =+D25 -> 1233000 | D26: 2163000 | E26: =IF($B$24="N/A","",IF(AND($F$3>C26,$F$3<D26),($F$3-C26),IF(AND($F$3>C26,$F$3>D26),D26-C26,0))) -> 930000 | F26: =IF($C$12="N/A","",E26*B26) -> 139500
A27: Rango 3 | B27: 0.2 | C27: =+D26 -> 2163000 | D27: 4325000 | E27: =IF($B$24="N/A","",IF(AND($F$3>C27,$F$3<D27),($F$3-C27),IF(AND($F$3>C27,$F$3>D27),D27-C27,0))) -> 1016434.36 | F27: =IF($C$12="N/A","",E27*B27) -> 203286.872
A28: Rango 4 | B28: 0.25 | C28: =+D27 -> 4325000 | D28: 15000000 | E28: =IF($B$24="N/A","",IF(AND($F$3>C28,$F$3<D28),($F$3-C28),IF(AND($F$3>C28,$F$3>D28),D28-C28,0))) -> 0 | F28: =IF($C$12="N/A","",E28*B28) -> 0
E29: =SUM(E24:E28) -> 2339434.36 | F29: =SUM(F24:F28) -> 382086.872
A31: Total deducciones de Ley
A32: Deducciones de Ley sin contribución: | E32: =+SUM(F33:F38)/F3 -> 0.3061180444
A33: Aporte al Fondo de Jubilaciones y Pensiones PJ (FJPPJ) | E33: 0.13 | F33: =+F3*E33 -> 413326.4668
A34: Seguro de Enfermedad y Maternidad (C.C.S.S.) | E34: 0.05 | F34: =F3*E34 -> 158971.718
A35: Fondo de Socorro Mutuo | E35: 500 | F35: 3000
A36: Pensión Alimentaria (en caso que aplique) | F36: 0
A37: Costo de Administración Junta Administradora FJPPJ | E37: 0.005 | F37: =+E37*F3 -> 15897.1718
A38: Impto. sobre la renta | F38: =+F29 -> 382086.872
A40: Contribución Solidaria | F40: =+F21 -> 201822.026
A41: Total deducciones de Ley con contribución | E41: =+F41/F3 -> 0.3695953813 | F41: =SUM(F33:F40) -> 1175104.255
A42: Monto Neto beneficio | F42: =+F3-F41 -> 2004330.105

Sheet Flor M° J. S. (hidden)
A1: Matriz para el Cálculo Mensual de la deducción de ley denominada Contribución Solidaria
A3: Monto Bruto de Asignación Mensual | F3: 3059204.56
A5: Contribución Solidaria
A7: Datos de Ley para Contribución Solidaria.
A8: Cant. De Salarios | C8: 6
A9: Aplica CS | C9: SI
A10: Monto Salario + bajo | C10: 433800
A11: Monto Tope | C11: =+C10*C8 -> 2602800
A12: Monto Tasable | C12: =+IF(OR(F3<C11,C9="no"),"N/A",F3-C11) -> 456404.56
A13: % Contribución Aplicada | C13: =IF(C12="N/A",0,SUM(F15:F19)/F3) -> 0.05221670956
A14: Rangos | B14: 0.25 | C14: Limite Inf. | D14: Limite Sup. | E14: Exceso | F14: Aporte
A15: Estrato A | B15: 0.35 | C15: =+C11 -> 2602800 | D15: =+C15*(1+$B$14) -> 3253500 | E15: =IF($C$12="N/A","",IF(AND($F$3>C15,$F$3<D15),($F$3-C15),IF(AND($F$3>C15,$F$3>D15),D15-C15,0))) -> 456404.56 | F15: =IF($C$12="N/A","",E15*B15) -> 159741.596
A16: Estrato B | B16: 0.4 | C16: =+D15 -> 3253500 | D16: =+C16*(1+$B$14) -> 4066875 | E16: =IF($C$12="N/A","",IF(AND($F$3>C16,$F$3<D16),($F$3-C16),IF(AND($F$3>C16,$F$3>D16),D16-C16,0))) -> 0 | F16: =IF($C$12="N/A","",E16*B16) -> 0
A17: Estrato C | B17: 0.45 | C17: =+D16 -> 4066875 | D17: =+C17*(1+$B$14) -> 5083593.75 | E17: =IF($C$12="N/A","",IF(AND($F$3>C17,$F$3<D17),($F$3-C17),IF(AND($F$3>C17,$F$3>D17),D17-C17,0))) -> 0 | F17: =IF($C$12="N/A","",E17*B17) -> 0
A18: Estrato D | B18: 0.5 | C18: =+D17 -> 5083593.75 | D18: =+C18*(1+$B$14) -> 6354492.188 | E18: =IF($C$12="N/A","",IF(AND($F$3>C18,$F$3<D18),($F$3-C18),IF(AND($F$3>C18,$F$3>D18),D18-C18,0))) -> 0 | F18: =IF($C$12="N/A","",E18*B18) -> 0
A19: Estrato E | B19: 0.55 | C19: =+D18 -> 6354492.188 | D19: 15000000 | E19: =IF($C$12="N/A","",IF(AND($F$3>C19,$F$3<D19),($F$3-C19),IF(AND($F$3>C19,$F$3>D19),D19-C19,0))) -> 0 | F19: =IF($C$12="N/A","",E19*B19) -> 0
E20: =SUM(E15:E19) -> 456404.56 | F20: =SUM(F15:F19) -> 159741.596
A21: Contribución Máxima | C21: 0.55 | F21: =_xlfn.IFS(F3*(C21-E32)<0,0,(SUM(F15:F19,F33:F38)/F3)>C21,F3*(C21-E32),(SUM(F15:F19,F33:F38)/F3)<C21,SUM(F15:F19)) -> 0
A23: Impuesto sobre la Renta
A24: Monto Tasable | B24: =+F3-C25 -> 2219204.56
A25: Rango 1 | B25: 0.1 | C25: 840000 | D25: 1233000 | E25: =IF($B$24="N/A","",IF(AND($F$3>C25,$F$3<D25),($F$3-C25),IF(AND($F$3>C25,$F$3>D25),D25-C25,0))) -> 393000 | F25: =IF($C$12="N/A","",E25*B25) -> 39300
A26: Rango 2 | B26: 0.15 | C26: =+D25 -> 1233000 | D26: 2163000 | E26: =IF($B$24="N/A","",IF(AND($F$3>C26,$F$3<D26),($F$3-C26),IF(AND($F$3>C26,$F$3>D26),D26-C26,0))) -> 930000 | F26: =IF($C$12="N/A","",E26*B26) -> 139500
A27: Rango 3 | B27: 0.2 | C27: =+D26 -> 2163000 | D27: 4325000 | E27: =IF($B$24="N/A","",IF(AND($F$3>C27,$F$3<D27),($F$3-C27),IF(AND($F$3>C27,$F$3>D27),D27-C27,0))) -> 896204.56 | F27: =IF($C$12="N/A","",E27*B27) -> 179240.912
A28: Rango 4 | B28: 0.25 | C28: =+D27 -> 4325000 | D28: 15000000 | E28: =IF($B$24="N/A","",IF(AND($F$3>C28,$F$3<D28),($F$3-C28),IF(AND($F$3>C28,$F$3>D28),D28-C28,0))) -> 0 | F28: =IF($C$12="N/A","",E28*B28) -> 0
E29: =SUM(E24:E28) -> 2219204.56 | F29: =SUM(F24:F28) -> 358040.912
A31: Total deducciones de Ley
A32: Deducciones de Ley sin contribución: | E32: =+SUM(F33:F38)/F3 -> 0.8260296773
A33: Aporte al Fondo de Jubilaciones y Pensiones PJ (FJPPJ) | E33: 0.13 | F33: =+F3*E33 -> 397696.5928
A34: Seguro de Enfermedad y Maternidad (C.C.S.S.) | E34: 0.05 | F34: =F3*E34 -> 152960.228
A35: Fondo de Socorro Mutuo | E35: 500 | F35: 3000
A36: Pensión Alimentaria (en caso que aplique) | F36: 1600000
A37: Costo de Administración Junta Administradora FJPPJ | E37: 0.005 | F37: =+E37*F3 -> 15296.0228
A38: Impto. sobre la renta | F38: =+F29 -> 358040.912
A40: Contribución Solidaria | F40: =IF(F21<0,0,F21) -> 0
A41: Total deducciones de Ley con contribución | E41: =+F41/F3 -> 0.8260296773 | F41: =SUM(F33:F40) -> 2526993.756
A42: Monto Neto beneficio | F42: =+F3-F41 -> 532210.8044

Sheet Douglas I. R. R. (hidden)
A1: Matriz para el Cálculo Mensual de la deducción de ley denominada Contribución Solidaria
A3: Monto Bruto de Asignación Mensual | F3: 3787018.84
A5: Contribución Solidaria
A7: Datos de Ley para Contribución Solidaria.
A8: Cant. De Salarios | C8: 6
A9: Aplica CS | C9: SI
A10: Monto Salario + bajo | C10: 433800
A11: Monto Tope | C11: =+C10*C8 -> 2602800
A12: Monto Tasable | C12: =+IF(OR(F3<C11,C9="no"),"N/A",F3-C11) -> 1184218.84
A13: % Contribución Aplicada | C13: =IF(C12="N/A",0,SUM(F15:F19)/F3) -> 0.116490716
A14: Rangos | B14: 0.25 | C14: Limite Inf. | D14: Limite Sup. | E14: Exceso | F14: Aporte
A15: Estrato A | B15: 0.35 | C15: =+C11 -> 2602800 | D15: =+C15*(1+$B$14) -> 3253500 | E15: =IF($C$12="N/A","",IF(AND($F$3>C15,$F$3<D15),($F$3-C15),IF(AND($F$3>C15,$F$3>D15),D15-C15,0))) -> 650700 | F15: =IF($C$12="N/A","",E15*B15) -> 227745
A16: Estrato B | B16: 0.4 | C16: =+D15 -> 3253500 | D16: =+C16*(1+$B$14) -> 4066875 | E16: =IF($C$12="N/A","",IF(AND($F$3>C16,$F$3<D16),($F$3-C16),IF(AND($F$3>C16,$F$3>D16),D16-C16,0))) -> 533518.84 | F16: =IF($C$12="N/A","",E16*B16) -> 213407.536
A17: Estrato C | B17: 0.45 | C17: =+D16 -> 4066875 | D17: =+C17*(1+$B$14) -> 5083593.75 | E17: =IF($C$12="N/A","",IF(AND($F$3>C17,$F$3<D17),($F$3-C17),IF(AND($F$3>C17,$F$3>D17),D17-C17,0))) -> 0 | F17: =IF($C$12="N/A","",E17*B17) -> 0
A18: Estrato D | B18: 0.5 | C18: =+D17 -> 5083593.75 | D18: =+C18*(1+$B$14) -> 6354492.188 | E18: =IF($C$12="N/A","",IF(AND($F$3>C18,$F$3<D18),($F$3-C18),IF(AND($F$3>C18,$F$3>D18),D18-C18,0))) -> 0 | F18: =IF($C$12="N/A","",E18*B18) -> 0
A19: Estrato E | B19: 0.55 | C19: =+D18 -> 6354492.188 | D19: 15000000 | E19: =IF($C$12="N/A","",IF(AND($F$3>C19,$F$3<D19),($F$3-C19),IF(AND($F$3>C19,$F$3>D19),D19-C19,0))) -> 0 | F19: =IF($C$12="N/A","",E19*B19) -> 0
E20: =SUM(E15:E19) -> 1184218.84 | F20: =SUM(F15:F19) -> 441152.536
A21: Contribución Máxima | C21: 0.55 | F21: =IF(C9="si",IF((SUM(F15:F19,F33:F38)/F3)>C21,F3*(C21-E32),SUM(F15:F19)),0) -> -424341.8914
A23: Impuesto sobre la Renta
A24: Monto Tasable | B24: =+F3-C25 -> 2947018.84
A25: Rango 1 | B25: 0.1 | C25: 840000 | D25: 1233000 | E25: =IF($B$24="N/A","",IF(AND($F$3>C25,$F$3<D25),($F$3-C25),IF(AND($F$3>C25,$F$3>D25),D25-C25,0))) -> 393000 | F25: =IF($C$12="N/A","",E25*B25) -> 39300
A26: Rango 2 | B26: 0.15 | C26: =+D25 -> 1233000 | D26: 2163000 | E26: =IF($B$24="N/A","",IF(AND($F$3>C26,$F$3<D26),($F$3-C26),IF(AND($F$3>C26,$F$3>D26),D26-C26,0))) -> 930000 | F26: =IF($C$12="N/A","",E26*B26) -> 139500
A27: Rango 3 | B27: 0.2 | C27: =+D26 -> 2163000 | D27: 4325000 | E27: =IF($B$24="N/A","",IF(AND($F$3>C27,$F$3<D27),($F$3-C27),IF(AND($F$3>C27,$F$3>D27),D27-C27,0))) -> 1624018.84 | F27: =IF($C$12="N/A","",E27*B27) -> 324803.768
A28: Rango 4 | B28: 0.25 | C28: =+D27 -> 4325000 | D28: 15000000 | E28: =IF($B$24="N/A","",IF(AND($F$3>C28,$F$3<D28),($F$3-C28),IF(AND($F$3>C28,$F$3>D28),D28-C28,0))) -> 0 | F28: =IF($C$12="N/A","",E28*B28) -> 0
E29: =SUM(E24:E28) -> 2947018.84 | F29: =SUM(F24:F28) -> 503603.768
A31: Total deducciones de Ley
A32: Deducciones de Ley sin contribución: | E32: =+SUM(F33:F38)/F3 -> 0.662051698
A33: Aporte al Fondo de Jubilaciones y Pensiones PJ (FJPPJ) | E33: 0.13 | F33: =+F3*E33 -> 492312.4492
A34: Seguro de Enfermedad y Maternidad (C.C.S.S.) | E34: 0.05 | F34: =F3*E34 -> 189350.942
A35: Fondo de Socorro Mutuo | E35: 500 | F35: 3000
A36: Pensión Alimentaria (en caso que aplique) | F36: 1300000
A37: Costo de Administración Junta Administradora FJPPJ | E37: 0.005 | F37: =+E37*F3 -> 18935.0942
A38: Impto. sobre la renta | F38: =+F29 -> 503603.768
A40: Contribución Solidaria | F40: =IF(F21<0,0,F21) -> 0
A41: Total deducciones de Ley con contribución | E41: =+F41/F3 -> 0.662051698 | F41: =SUM(F33:F40) -> 2507202.253
A42: Monto Neto beneficio | F42: =+F3-F41 -> 1279816.587
